fUST/lending_fUST_20241022
["ID","MTS","AMOUNT","RATE_DAILY","PERIOD"]
[340629446,1729557048390,-171.036754,0.0001698,2]
[340629447,1729557048402,-715.94,0.00016986,2]
[340629448,1729557048686,-500.0,0.00016986,2]
[340629449,1729557048697,-500.0,0.00016986,2]
[340629450,1729557048707,-712.87,0.00016986,2]
[340629451,1729557048716,-587.59,0.00016986,2]
[340629452,1729557048729,-500.0,0.00016986,2]
[340629453,1729557048742,-277.45734796,0.00016986,2]
[340629454,1729557048754,-246.52775519,0.00016986,2]
[340629455,1729557048766,-500.0,0.00016986,2]
[340629456,1729557048776,-651.84,0.00016986,2]
[340629457,1729557048786,-500.0,0.00016986,2]
[340629458,1729557048796,-500.0,0.00016986,2]
[340629459,1729557048806,-200.0,0.00016986,2]
[340629460,1729557048816,-500.0,0.00016986,2]
[340629461,1729557048826,-500.0,0.00016986,2]
[340629462,1729557048836,-857.58,0.00016986,2]
[340629463,1729557048847,-500.0,0.00016986,2]
[340629464,1729557048859,-500.0,0.00016986,2]
[340629465,1729557048875,-500.0,0.00016986,2]
[340629466,1729557048885,-500.0,0.00016986,2]
[340629467,1729557048894,-728.27,0.00016986,2]
[340629468,1729557048904,-500.0,0.00016986,2]
[340629469,1729557048915,-500.0,0.00016986,2]
[340629470,1729557048924,-865.75,0.00016986,2]
[340629471,1729557048934,-500.0,0.00016986,2]
[340629472,1729557048944,-500.0,0.00016986,2]
[340629473,1729557048953,-500.0,0.00016986,2]
[340629474,1729557048963,-500.0,0.00016986,2]
[340629475,1729557048980,-510.77,0.00016986,2]
[340629476,1729557048997,-512.54,0.00016986,2]
[340629477,1729557049008,-500.0,0.00016986,2]
[340629478,1729557049021,-500.0,0.00016986,2]
[340629479,1729557049032,-500.0,0.00016986,2]
[340629480,1729557049043,-624.95,0.00016986,2]
[340629481,1729557049054,-500.0,0.00016986,2]
[340629482,1729557049065,-500.0,0.00016986,2]
[340629483,1729557049076,-522.67,0.00016986,2]
[340629484,1729557049087,-688.87,0.00016986,2]
[340629485,1729557049097,-727.12,0.00016986,2]
[340629486,1729557049107,-500.0,0.00016986,2]
[340629487,1729557049118,-500.0,0.00016986,2]
[340629488,1729557049130,-500.0,0.00016986,2]
[340629489,1729557049140,-500.0,0.00016986,2]
[340629490,1729557049151,-500.0,0.00016986,2]
[340629491,1729557049162,-500.0,0.00016986,2]
[340629492,1729557049172,-1141.29,0.00016986,2]
[340629493,1729557049183,-934.92,0.00016986,2]
[340629494,1729557049193,-500.0,0.00016986,2]
[340629495,1729557049203,-500.0,0.00016986,2]
[340629496,1729557049213,-740.09,0.00016986,2]
[340629497,1729557049225,-500.0,0.00016986,2]
[340629498,1729557049235,-500.0,0.00016986,2]
[340629499,1729557049245,-843.65,0.00016986,2]
[340629500,1729557049255,-500.0,0.00016986,2]
[340629501,1729557049268,-500.0,0.00016986,2]
[340629502,1729557049278,-500.0,0.00016986,2]
[340629503,1729557049289,-500.0,0.00016986,2]
[340629504,1729557049299,-737.87,0.00016986,2]
[340629505,1729557049310,-606.68,0.00016986,2]
[340629506,1729557049321,-931.36,0.00016986,2]
[340629507,1729557049331,-500.0,0.00016986,2]
[340629508,1729557049341,-1035.33,0.00016986,2]
[340629509,1729557049352,-573.37,0.00016986,2]
[340629510,1729557049362,-757.94,0.00016986,2]
[340629511,1729557049372,-500.0,0.00016986,2]
[340629512,1729557049382,-500.0,0.00016986,2]
[340629513,1729557049393,-728.15,0.00016986,2]
[340629514,1729557049403,-500.0,0.00016986,2]
[340629515,1729557049414,-500.0,0.00016986,2]
[340629516,1729557049424,-500.0,0.00016986,2]
[340629517,1729557049434,-881.93,0.00016986,2]
[340629518,1729557049445,-500.0,0.00016986,2]
[340629519,1729557049455,-575.14,0.00016986,2]
[340629520,1729557049466,-500.0,0.00016986,2]
[340629521,1729557049476,-1110.88,0.00016986,2]
[340629522,1729557049486,-822.24,0.00016986,2]
[340629523,1729557049496,-909.06,0.00016986,2]
[340629524,1729557049508,-508.8,0.00016986,2]
[340629525,1729557049521,-514.56,0.00016986,2]
[340629526,1729557049531,-681.86,0.00016986,2]
[340629527,1729557049540,-832.16,0.00016986,2]
[340629528,1729557049551,-500.0,0.00016986,2]
[340629529,1729557049561,-500.0,0.00016986,2]
[340629530,1729557049571,-1618.7,0.00016986,2]
[340629531,1729557049582,-740.48,0.00016986,2]
[340629532,1729557049598,-686.19,0.00016986,2]
[340629533,1729557049608,-1000.0,0.00016986,2]
[340629534,1729557049618,-833.71,0.00016986,2]
[340629535,1729557049628,-637.03,0.00016986,2]
[340629536,1729557049639,-500.0,0.00016986,2]
[340629537,1729557049649,-500.0,0.00016986,2]
[340629538,1729557049660,-500.0,0.00016986,2]
[340629539,1729557049671,-1588.61,0.00016986,2]
[340629540,1729557049681,-500.0,0.00016986,2]
[340629541,1729557049692,-755.6,0.00016986,2]
[340629542,1729557049703,-500.0,0.00016986,2]
[340629543,1729557049713,-500.0,0.00016986,2]
[340629544,1729557049723,-596.0,0.00016986,2]
[340629545,1729557049734,-500.0,0.00016986,2]
[340629546,1729557049744,-509.4,0.00016986,2]
[340629547,1729557049755,-500.0,0.00016986,2]
[340629548,1729557049766,-1036.88,0.00016986,2]
[340629549,1729557049776,-500.0,0.00016986,2]
[340629550,1729557049787,-500.0,0.00016986,2]
[340629551,1729557049797,-664.88,0.00016986,2]
[340629552,1729557049807,-500.0,0.00016986,2]
[340629553,1729557049817,-559.19,0.00016986,2]
[340629554,1729557049827,-251.25813693,0.00016986,2]
[340629555,1729557049838,-699.79,0.00016986,2]
[340629556,1729557049848,-500.0,0.00016986,2]
[340629557,1729557049859,-500.0,0.00016986,2]
[340629558,1729557049869,-500.0,0.00016986,2]
[340629559,1729557049879,-524.5,0.00016986,2]
[340629560,1729557049890,-500.0,0.00016986,2]
[340629561,1729557049899,-500.0,0.00016986,2]
[340629562,1729557049910,-506.12,0.00016986,2]
[340629563,1729557049920,-500.0,0.00016986,2]
[340629564,1729557049931,-500.0,0.00016986,2]
[340629565,1729557049940,-609.19,0.00016986,2]
[340629566,1729557049951,-500.0,0.00016986,2]
[340629567,1729557049961,-1089.8,0.00016986,2]
[340629568,1729557049971,-500.0,0.00016986,2]
[340629569,1729557049981,-506.9,0.00016986,2]
[340629570,1729557049991,-500.0,0.00016986,2]
[340629571,1729557050001,-701.91,0.00016986,2]
[340629572,1729557050011,-500.0,0.00016986,2]
[340629573,1729557050022,-500.0,0.00016986,2]
[340629574,1729557050033,-500.0,0.00016986,2]
[340629575,1729557050043,-500.0,0.00016986,2]
[340629576,1729557050053,-680.94,0.00016986,2]
[340629577,1729557050065,-500.0,0.00016986,2]
[340629578,1729557050075,-657.26,0.00016986,2]
[340629579,1729557050085,-1270.64,0.00016986,2]
[340629580,1729557050095,-500.0,0.00016986,2]
[340629581,1729557050105,-21399.33,0.00016986,2]
[340629582,1729557050116,-505.29,0.00016986,2]
[340629583,1729557050126,-500.0,0.00016986,2]
[340629584,1729557050137,-500.0,0.00016986,2]
[340629585,1729557050147,-4280.2,0.00016986,2]
[340629586,1729557050157,-151.0,0.00016986,2]
[340629587,1729557050167,-202.635184,0.00016986,2]
[340629588,1729557050177,-649.67,0.00016986,2]
[340629589,1729557050187,-151.0,0.00016986,2]
[340629590,1729557050202,-500.0,0.00016986,2]
[340629591,1729557050212,-151.0,0.00016986,2]
[340629592,1729557050223,-1808.75,0.00016986,2]
[340629593,1729557050234,-151.0,0.00016986,2]
[340629594,1729557050244,-163.76496,0.00016986,2]
[340629595,1729557050254,-500.0,0.00016986,2]
[340629596,1729557050266,-399.87835724,0.00016986,2]
[340629598,1729557110345,374.09,0.00010959,2]
[340629599,1729557121203,1.00461381,0.00010959,2]
[340629600,1729557121227,174.40948515,0.00010959,2]
[340629601,1729557121256,136.32590104,0.00010959,2]
[340629602,1729557131736,246.71151414,0.00010959,2]
[340629603,1729557131763,13.07848586,0.00010959,2]
[340629604,1729557142273,216.49,0.00010959,2]
[340629605,1729557153130,180.41,0.00010959,2]
[340629606,1729557163690,150.34,0.00010959,2]
[340629607,1729557174229,751.72,0.00010959,2]
[340629617,1729557941132,-250.0000018,0.0001406,2]
[340629618,1729557941154,-350.0,0.00014576,2]
[340629619,1729557941176,-158.2537,0.00014576,2]
[340629620,1729557941198,-139.34019858,0.00014582,2]
[340629622,1729558032106,-300.0,0.00014122,2]
[340629623,1729558032132,-300.0,0.00014122,2]
[340629624,1729558032158,-367.44122624,0.00014123,2]
[340629625,1729558036098,-12850.86216346,0.00014123,2]
[340629626,1729558052117,-248.96756808,0.00014123,2]
[340629627,1729558054103,-438.22936273,0.00014123,2]
[340629628,1729558147107,-300.0,0.00014122,2]
[340629629,1729558147128,-300.0,0.00014122,2]
[340629630,1729558147149,-1332.96761795,0.00014123,2]
[340629631,1729558149106,-9661.53206154,0.00014123,2]
[340629632,1729558149127,-18.91350142,0.00014582,2]
[340629633,1729558149148,-158.2537,0.00014587,2]
[340629634,1729558149168,-158.2537,0.00014593,2]
[340629635,1729558149188,-158.2537,0.00014599,2]
[340629636,1729558149209,-158.2537,0.00014604,2]
[340629637,1729558149230,-158.2537,0.0001461,2]
[340629638,1729558149257,-158.2537,0.00014615,2]
[340629639,1729558149277,-158.2537,0.00014621,2]
[340629640,1729558149297,-158.2537,0.00014627,2]
[340629641,1729558149317,-158.2537,0.00014632,2]
[340629642,1729558149337,-158.2537,0.00014638,2]
[340629643,1729558149358,-158.2537,0.00014644,2]
[340629644,1729558149378,-158.2537,0.00014649,2]
[340629645,1729558149398,-500.0,0.0001478,2]
[340629674,1729558231834,-600.000001,0.0001486,2]
[340629676,1729558231844,-600.0,0.0001487,2]
[340629678,1729558231854,-136.599999,0.0001589,2]
[340629683,1729558231893,-32.141853,0.0001589,2]
[340629685,1729558231908,-150.0,0.000159,2]
[340629687,1729558231918,-300.0,0.00015985,2]
[340629689,1729558231927,-184.858147,0.00015985,2]
[340630002,1729558238233,-115.141853,0.00015985,2]
[340630004,1729558238243,-500.0,0.00015986,7]
[340630006,1729558238253,-500.0,0.00015986,7]
[340630009,1729558238262,-312.73172072,0.00015986,7]
[340630013,1729558238293,-187.26827928,0.00015986,7]
[340630015,1729558238302,-500.0,0.00015986,7]
[340630017,1729558238312,-139.40407265,0.00015986,7]
[340630784,1729558245841,-360.59592735,0.00015986,7]
[340630786,1729558245850,-500.0,0.00015986,7]
[340630788,1729558245860,-500.0,0.00015986,7]
[340630790,1729558245869,-500.0,0.00015986,7]
[340630792,1729558245878,-500.0,0.00015986,7]
[340630794,1729558245887,-500.0,0.00015986,7]
[340630796,1729558245897,-500.0,0.00015986,7]
[340630798,1729558245906,-500.0,0.00015986,7]
[340630800,1729558245916,-500.0,0.00015986,7]
[340630802,1729558245925,-500.0,0.00015986,7]
[340630804,1729558245934,-500.0,0.00015986,7]
[340630806,1729558245943,-500.0,0.00015986,7]
[340630808,1729558245952,-459.24,0.00015986,7]
[340630810,1729558245961,-1000.0,0.00016328,2]
[340630812,1729558245970,-330.97011738,0.00016338,2]
[340630814,1729558245979,-500.0,0.00016417,2]
[340630816,1729558245989,-557.24128076,0.00016418,2]
[340630818,1729558245998,-25991.6002715,0.00016418,2]
[340630820,1729558246007,-27037.1342571,0.00016418,2]
[340630848,1729558246257,-107.49346958,0.00016418,2]
[340630858,1729558246350,-377.37162042,0.00016418,2]
[340630860,1729558246359,-2287.22837958,0.00016428,2]
[340630862,1729558246369,-19372.43851332,0.00016428,2]
[340630864,1729558246378,-22934.9994559,0.00016428,2]
[340630866,1729558246388,-500.0,0.00016438,2]
[340630868,1729558246397,-500.0,0.00016438,2]
[340630870,1729558246406,-500.0,0.00016438,2]
[340630872,1729558246415,-500.0,0.00016438,2]
[340630874,1729558246424,-500.0,0.00016438,2]
[340630876,1729558246433,-500.0,0.00016438,2]
[340630878,1729558246442,-500.0,0.00016438,2]
[340630880,1729558246451,-500.0,0.00016438,2]
[340630882,1729558246460,-500.0,0.00016438,2]
[340630884,1729558246469,-500.0,0.00016438,2]
[340630886,1729558246479,-500.0,0.00016438,2]
[340630888,1729558246488,-500.0,0.00016438,2]
[340630890,1729558246498,-500.0,0.00016438,2]
[340630892,1729558246507,-500.0,0.00016438,2]
[340630894,1729558246517,-771.68,0.00016438,2]
[340630896,1729558246526,-972.02,0.00016438,2]
[340630898,1729558246535,-500.0,0.00016438,2]
[340630900,1729558246546,-500.0,0.00016438,2]
[340630902,1729558246556,-557.4,0.00016438,2]
[340630904,1729558246565,-1000.0,0.00016438,2]
[340630906,1729558246574,-500.0,0.00016438,2]
[340630908,1729558246585,-500.0,0.00016438,2]
[340630910,1729558246594,-500.0,0.00016438,2]
[340630912,1729558246604,-500.0,0.00016438,2]
[340630914,1729558246613,-500.0,0.00016438,2]
[340630916,1729558246622,-500.0,0.00016438,2]
[340630918,1729558246631,-500.0,0.00016438,2]
[340630920,1729558246640,-500.0,0.00016438,2]
[340630922,1729558246649,-500.0,0.00016438,2]
[340630924,1729558246658,-500.0,0.00016438,2]
[340630926,1729558246667,-410.23014349,0.00016438,2]
[340630928,1729558246677,-500.0,0.00016438,2]
[340630930,1729558246687,-500.0,0.00016438,2]
[340630932,1729558246696,-998.63,0.00016438,2]
[340630934,1729558246706,-500.0,0.00016438,2]
[340630936,1729558246715,-647.58,0.00016438,2]
[340630938,1729558246724,-500.0,0.00016438,2]
[340630940,1729558246733,-500.0,0.00016438,2]
[340630942,1729558246742,-818.05,0.00016438,2]
[340630944,1729558246751,-500.0,0.00016438,2]
[340630946,1729558246760,-500.0,0.00016438,2]
[340630948,1729558246770,-500.0,0.00016438,2]
[340630950,1729558246779,-454.8259747,0.00016438,2]
[340630952,1729558246788,-645.63,0.00016438,2]
[340630954,1729558246798,-738.2,0.00016438,2]
[340630956,1729558246808,-500.0,0.00016438,2]
[340630958,1729558246818,-814.94,0.00016438,2]
[340630960,1729558246830,-500.0,0.00016438,2]
[340630962,1729558246839,-530.84,0.00016438,2]
[340630964,1729558246848,-500.0,0.00016438,2]
[340630966,1729558246858,-752.35,0.00016438,2]
[340630969,1729558246867,-663.19,0.00016438,2]
[340630971,1729558246876,-500.0,0.00016438,2]
[340630972,1729558246885,-500.0,0.00016438,2]
[340630975,1729558246895,-501.69,0.00016438,2]
[340630977,1729558246904,-637.13,0.00016438,2]
[340630979,1729558246914,-500.0,0.00016438,2]
[340630981,1729558246924,-756.87,0.00016438,2]
[340630983,1729558246933,-500.0,0.00016438,2]
[340630985,1729558246942,-905.91,0.00016438,2]
[340630987,1729558246952,-500.0,0.00016438,2]
[340630989,1729558246962,-709.71,0.00016438,2]
[340630991,1729558246971,-500.0,0.00016438,2]
[340630993,1729558246981,-500.0,0.00016438,2]
[340630995,1729558246990,-500.0,0.00016438,2]
[340630997,1729558246999,-500.0,0.00016438,2]
[340630999,1729558247008,-503.24,0.00016438,2]
[340631001,1729558247017,-719.46,0.00016438,2]
[340631003,1729558247027,-728.14,0.00016438,2]
[340631005,1729558247036,-500.0,0.00016438,2]
[340631007,1729558247045,-795.42,0.00016438,2]
[340631008,1729558247054,-500.0,0.00016438,2]
[340631010,1729558247063,-1416.36,0.00016438,2]
[340631013,1729558247073,-500.0,0.00016438,2]
[340631015,1729558247085,-729.5,0.00016438,2]
[340631017,1729558247094,-500.0,0.00016438,2]
[340631019,1729558247103,-500.0,0.00016438,2]
[340631021,1729558247114,-596.63,0.00016438,2]
[340631023,1729558247123,-1390.03,0.00016438,2]
[340631025,1729558247133,-647.92,0.00016438,2]
[340631027,1729558247141,-989.86,0.00016438,2]
[340631029,1729558247150,-521.5,0.00016438,2]
[340631031,1729558247160,-600.41,0.00016438,2]
[340631033,1729558247169,-500.0,0.00016438,2]
[340631035,1729558247178,-500.0,0.00016438,2]
[340631036,1729558247187,-500.0,0.00016438,2]
[340631038,1729558247197,-500.0,0.00016438,2]
[340631040,1729558247206,-500.0,0.00016438,2]
[340631042,1729558247215,-661.15,0.00016438,2]
[340631044,1729558247225,-500.0,0.00016438,2]
[340631046,1729558247236,-907.27,0.00016438,2]
[340631048,1729558247245,-500.0,0.00016438,2]
[340631050,1729558247254,-500.0,0.00016438,2]
[340631052,1729558247264,-500.0,0.00016438,2]
[340631054,1729558247273,-500.0,0.00016438,2]
[340631057,1729558247283,-693.81,0.00016438,2]
[340631059,1729558247293,-500.0,0.00016438,2]
[340631061,1729558247302,-500.0,0.00016438,2]
[340631063,1729558247311,-500.0,0.00016438,2]
[340631065,1729558247320,-500.0,0.00016438,2]
[340631067,1729558247331,-500.0,0.00016438,2]
[340631069,1729558247340,-500.0,0.00016438,2]
[340631071,1729558247349,-151.0,0.00016438,2]
[340631073,1729558247359,-539.78,0.00016438,2]
[340631075,1729558247367,-500.0,0.00016438,2]
[340631077,1729558247376,-533.05,0.00016438,2]
[340631079,1729558247386,-678.32,0.00016438,2]
[340631081,1729558247395,-500.0,0.00016438,2]
[340631083,1729558247404,-612.32,0.00016438,2]
[340631085,1729558247413,-534.69,0.00016438,2]
[340631087,1729558247422,-500.0,0.00016438,2]
[340631089,1729558247432,-500.0,0.00016438,2]
[340631091,1729558247442,-614.17,0.00016438,2]
[340631093,1729558247451,-762.75,0.00016438,2]
[340631095,1729558247461,-500.0,0.00016438,2]
[340631097,1729558247470,-500.0,0.00016438,2]
[340631099,1729558247479,-953.57,0.00016438,2]
[340631100,1729558247489,-500.0,0.00016438,2]
[340631102,1729558247498,-1111.81,0.00016438,2]
[340631104,1729558247507,-500.0,0.00016438,2]
[340631106,1729558247516,-500.0,0.00016438,2]
[340631108,1729558247526,-575.1,0.00016438,2]
[340631109,1729558247535,-623.76,0.00016438,2]
[340631111,1729558247544,-595.82,0.00016438,2]
[340631113,1729558247554,-500.0,0.00016438,2]
[340631115,1729558247563,-514.14,0.00016438,2]
[340631117,1729558247572,-500.0,0.00016438,2]
[340631118,1729558247583,-1174.12,0.00016438,2]
[340631120,1729558247593,-568.46,0.00016438,2]
[340631122,1729558247602,-500.0,0.00016438,2]
[340631124,1729558247611,-500.0,0.00016438,2]
[340631126,1729558247620,-500.0,0.00016438,2]
[340631128,1729558247629,-500.0,0.00016438,2]
[340631130,1729558247639,-933.13,0.00016438,2]
[340631132,1729558247648,-604.38,0.00016438,2]
[340631134,1729558247657,-1247.08,0.00016438,2]
[340631136,1729558247666,-500.0,0.00016438,2]
[340631138,1729558247675,-500.0,0.00016438,2]
[340631140,1729558247684,-835.24,0.00016438,2]
[340631142,1729558247693,-1312.22,0.00016438,2]
[340631144,1729558247702,-500.0,0.00016438,2]
[340631146,1729558247711,-500.0,0.00016438,2]
[340631148,1729558247721,-570.36,0.00016438,2]
[340631150,1729558247730,-625.0,0.00016438,2]
[340631152,1729558247739,-500.0,0.00016438,2]
[340631154,1729558247749,-606.43,0.00016438,2]
[340631156,1729558247758,-949.72,0.00016438,2]
[340631158,1729558247768,-500.0,0.00016438,2]
[340631160,1729558247777,-500.0,0.00016438,2]
[340631162,1729558247786,-873.36,0.00016438,2]
[340631164,1729558247796,-200.0,0.00016438,2]
[340631166,1729558247805,-792.96,0.00016438,2]
[340631168,1729558247814,-500.0,0.00016438,2]
[340631170,1729558247824,-500.0,0.00016438,2]
[340631172,1729558247836,-901.8,0.00016438,2]
[340631174,1729558247846,-500.0,0.00016438,2]
[340631176,1729558247855,-893.18,0.00016438,2]
[340631178,1729558247864,-750.38,0.00016438,2]
[340631180,1729558247874,-500.0,0.00016438,2]
[340631182,1729558247884,-847.35,0.00016438,2]
[340631184,1729558247893,-500.0,0.00016438,2]
[340631186,1729558247902,-563.74,0.00016438,2]
[340631188,1729558247911,-500.0,0.00016438,2]
[340631189,1729558247920,-500.0,0.00016438,2]
[340631191,1729558247929,-731.74,0.00016438,2]
[340631193,1729558247938,-151.0,0.00016438,2]
[340631195,1729558247947,-500.0,0.00016438,2]
[340631197,1729558247956,-151.0,0.00016438,2]
[340631198,1729558247966,-500.0,0.00016438,2]
[340631200,1729558247975,-500.0,0.00016438,2]
[340631202,1729558247984,-500.0,0.00016438,2]
[340631204,1729558247994,-500.0,0.00016438,2]
[340631205,1729558248004,-668.4,0.00016438,2]
[340631207,1729558248013,-500.0,0.00016438,2]
[340631209,1729558248023,-643.11,0.00016438,2]
[340631210,1729558248032,-186.01165632,0.00016438,2]
[340631890,1729558277533,868.95,0.00010959,2]
[340631894,1729558317242,152.0,0.0001359,2]
[340631896,1729559143139,-300.0,0.00015268,2]
[340631897,1729559143165,-45.159,0.00015268,2]
[340631898,1729559149475,-254.841,0.00015268,2]
[340631899,1729559149497,-148.09299363,0.00015269,2]
[340631900,1729559227091,-185.46399321,0.00014,2]
[340631901,1729559248617,1703.53,0.00013,2]
[340631902,1729559250092,-280.9808403,0.00013,2]
[340631903,1729559251108,-455.03382217,0.00013,2]
[340631904,1729559347149,-3450.88311065,0.00013,2]
[340631905,1729559352121,-1314.10823367,0.00013,2]
[340631906,1729559355216,150.69990069,0.0001359,2]
[340631907,1729559355237,1.30009931,0.0001359,2]
[340631951,1729559432003,-300.0,0.00014999,2]
[340631953,1729559432013,-300.0,0.00014999,2]
[340631955,1729559432023,-500.0,0.00015,2]
[340631957,1729559432032,-500.0,0.00015,2]
[340631959,1729559432042,-500.0,0.00015,2]
[340631961,1729559432051,-500.0,0.00015,2]
[340631963,1729559432061,-500.0,0.00015,2]
[340631965,1729559432071,-500.0,0.00015,2]
[340631967,1729559432080,-500.0,0.00015,2]
[340631969,1729559432090,-500.0,0.00015,2]
[340631971,1729559432100,-500.0,0.00015,2]
[340631973,1729559432109,-500.0,0.00015,2]
[340631975,1729559432118,-229.733324,0.00015,2]
[340631977,1729559432131,-270.266676,0.00015,2]
[340631979,1729559432140,-500.0,0.00015,2]
[340631981,1729559432150,-500.0,0.00015,2]
[340631983,1729559432160,-500.0,0.00015,2]
[340631985,1729559432170,-500.0,0.00015,2]
[340631987,1729559432179,-500.0,0.00015,2]
[340631989,1729559432188,-559.23642127,0.00015,2]
[340631991,1729559432198,-494.0247793,0.00015269,2]
[340631993,1729559432208,-24751.90700637,0.00015269,2]
[340631995,1729559432217,-199.3304071,0.00015325,2]
[340631997,1729559432227,-160.304759,0.0001589,2]
[340631999,1729559432237,-300.42,0.00016,7]
[340632001,1729559432247,-414.9392584,0.00016026,2]
[340632003,1729559432257,-6843.23939298,0.00016259,2]
[340632005,1729559432267,-150.0,0.00016337,2]
[340632007,1729559432277,-500.0,0.00016399,2]
[340632009,1729559432286,-500.0,0.00016399,2]
[340632011,1729559432296,-500.0,0.00016399,2]
[340632013,1729559432306,-500.0,0.00016399,2]
[340632015,1729559432315,-500.0,0.00016399,2]
[340632017,1729559432324,-500.0,0.00016399,2]
[340632019,1729559432333,-153.0,0.000164,2]
[340632021,1729559432342,-417.3860568,0.000164,2]
[340632023,1729559432353,-500.0,0.000164,2]
[340632025,1729559432362,-500.0,0.000164,2]
[340632027,1729559432371,-500.0,0.000164,2]
[340632029,1729559432380,-500.0,0.000164,2]
[340632031,1729559432390,-500.0,0.000164,2]
[340632033,1729559432400,-500.0,0.000164,2]
[340632035,1729559432410,-500.0,0.000164,2]
[340632037,1729559432419,-500.0,0.000164,2]
[340632039,1729559432428,-500.0,0.000164,2]
[340632041,1729559432438,-500.0,0.000164,2]
[340632043,1729559432447,-420.0,0.00016416,2]
[340632045,1729559432457,-84238.3935243,0.00016418,2]
[340632047,1729559432467,-18577.3495594,0.00016418,2]
[340632049,1729559432476,-151.0,0.00016428,2]
[340632051,1729559432486,-251.746443,0.00016428,2]
[340632053,1729559432496,-46799.1075135,0.00016428,2]
[340632055,1729559432506,-7243.34819772,0.00016428,2]
[340632333,1729559440157,-500.0,0.00016399,2]
[340632335,1729559440167,-500.0,0.00016399,2]
[340632337,1729559440176,-500.0,0.00016399,2]
[340632339,1729559440186,-268.97172304,0.00016399,2]
[340632341,1729559440195,-500.0,0.00016399,2]
[340632342,1729559440205,-500.0,0.00016399,2]
[340632344,1729559440214,-500.0,0.00016399,2]
[340632346,1729559440223,-500.0,0.00016399,2]
[340632348,1729559440232,-500.0,0.00016399,2]
[340632350,1729559440241,-500.0,0.00016399,2]
[340632352,1729559440251,-500.0,0.00016399,2]
[340632354,1729559440260,-500.0,0.00016399,2]
[340632355,1729559440269,-500.0,0.00016399,2]
[340632357,1729559440279,-500.0,0.00016399,2]
[340632359,1729559440288,-500.0,0.00016399,2]
[340632361,1729559440297,-450.0,0.00016399,2]
[340632363,1729559440307,-500.0,0.00016399,2]
[340632365,1729559440316,-500.0,0.00016399,2]
[340632367,1729559440325,-500.0,0.00016399,2]
[340632369,1729559440335,-3077.40155748,0.00016428,2]
[340632370,1729559440345,-7226.02092215,0.00016438,2]
[340632372,1729559440357,-23230.62646184,0.00016438,2]
[340632374,1729559440367,-500.0,0.00016438,2]
[340632376,1729559440376,-276.41970964,0.00016438,2]
[340632377,1729559440386,-500.0,0.00016438,2]
[340632378,1729559440395,-500.0,0.00016438,2]
[340632379,1729559440405,-500.0,0.00016438,2]
[340632380,1729559440414,-500.0,0.00016438,2]
[340632381,1729559440424,-579.94167964,0.00016438,2]
[340632382,1729559440434,-500.0,0.00016438,2]